Workbook

Sheet Beef Repl
B3: KSU-Beef Replacements
B5: An Excel spreadsheet program to evaluate the economic value of purchasing beef replacement females.
L8: Version- 1.17.2017
B28: INTRODUCTION
B29: A spreadsheet program to calculate the net present value of purchasing replacment heifers given expectations for calf selling price, weaning weights, cull cow price, and a target rate of return on investment.
B31: INSTRUCTIONS FOR THE USER:
B32: Be sure to "Enable Content" and "Enable Macros" for the spreadsheet to function correctly.
B33: In the Price and weights and Net Present Value tabs all blue numbers are inputs and all black numbers are calculated from these inputs. Several input cells (i.e., blue number) have a red diamond in the upper right hand corner of the cell. By moving your mouse cursor over this diamond, a brief description of the input will be displayed on the screen.
B40: FOR MORE INFORMATION:
B41: Updated by: | H41: Originally developed by:
B43: Glynn T. Tonsor, Ph.D. | H43: Kevin C. Dhuyvetter, Ph.D.
B44: Agricultural Economist | H44: Former Extension Agricultural Economist
B45: Department of Agricultural Economics | H45: Department of Agricultural Economics
B46: Kansas State University | H46: Kansas State University
B47: gtonsor@k-state.edu
B48: 785-532-1518
B49: Copyright 2017 AgManager.info, K-State Department of Agricultural Economics

Sheet Prices and weights
B2: Calf (average of steer and heifer) and Cull Cow Price Scenarios ($/cwt) | J2: Weaning Weight (steer and heifer) Scenarios
C4: Scenario 1 (S1) | E4: Scenario 2 (S2) | G4: Scenario 3 (S3) | K4: Scenario1 | L4: Scenario2 | M4: Scenario3
C5: USDA (As of Dec. '16) | E5: Flat at $25 under Scen 1 | G5: Scenario 1 +10% | K5: Low peak | L5: Constant | M5: High peak
B6: Year | C6: Calf | D6: Cull cow | E6: Calf | F6: Cull cow | G6: Calf | H6: Cull cow | J6: Calf | K6: Lbs/hd | L6: Lbs/hd | M6: Lbs/hd
B7: ='Net present value'!G5 -> 2018 | C7: 172.03 | D7: =C7*0.44 -> 75.6932 | E7: =C7-25 -> 147.03 | F7: =E7*0.44 -> 64.6932 | G7: =C7*1.1 -> 189.233 | H7: =G7*0.44 -> 83.26252 | J7: 1 | K7: 542 | L7: 562 | M7: 537
B8: =B7+1 -> 2019 | C8: 169.23 | D8: =C8*0.44 -> 74.4612 | E8: =E7 -> 147.03 | F8: =E8*0.44 -> 64.6932 | G8: =C8*1.1 -> 186.153 | H8: =G8*0.44 -> 81.90732 | J8: 2 | K8: 552 | L8: =L7 -> 562 | M8: 552
B9: =B8+1 -> 2020 | C9: 156.15 | D9: 68.706 | E9: =E8 -> 147.03 | F9: 64.6932 | G9: 171.765 | H9: 75.5766 | J9: 3 | K9: 562 | L9: =L8 -> 562 | M9: 567
B10: 2021 | C10: 152.81 | D10: 67.2364 | E10: 147.03 | F10: 64.6932 | G10: 168.091 | H10: 73.96004 | J10: 4 | K10: 567 | L10: 562 | M10: 582
B11: 2022 | C11: 145.33 | D11: 63.9452 | E11: 147.03 | F11: 64.6932 | G11: 159.863 | H11: 70.33972 | J11: 5 | K11: 572 | L11: 562 | M11: 582
B12: 2023 | C12: 145.1 | D12: 63.844 | E12: 147.03 | F12: 64.6932 | G12: 159.61 | H12: 70.2284 | J12: 6 | K12: 572 | L12: 562 | M12: 577
B13: 2024 | C13: 141.66 | D13: 62.3304 | E13: 147.03 | F13: 64.6932 | G13: 155.826 | H13: 68.56344 | J13: 7 | K13: 567 | L13: 562 | M13: 567
B14: 2025 | C14: 140.56 | D14: 61.8464 | E14: 147.03 | F14: 64.6932 | G14: 154.616 | H14: 68.03104 | J14: 8 | K14: 565 | L14: 562 | M14: 557
B15: 2026 | C15: 138.81 | D15: 61.0764 | E15: 147.03 | F15: 64.6932 | G15: 152.691 | H15: 67.18404 | J15: 9 | K15: 562 | L15: 562 | M15: 552
B16: 2027 | C16: =C15 -> 138.81 | D16: 61.0764 | E16: 147.03 | F16: 64.6932 | G16: 152.691 | H16: 67.18404 | J16: 10 | K16: 559 | L16: 562 | M16: 547
B17: Average | C17: =AVERAGE(C7:C16) -> 150.049 | D17: 66.02156 | E17: 147.03 | F17: 64.6932 | G17: 165.0539 | H17: 72.623716 | J17: Average | K17: =AVERAGE(K7:K16) -> 562 | L17: =AVERAGE(L7:L16) -> 562 | M17: =AVERAGE(M7:M16) -> 562
B19: Average weight for calf price (average of steer and heifer), lbs/head | H19: 525
B20: Price slide (change in price for weight deviation from base), $/lb | H20: 0.0842

Sheet Net present value
B2: Input Assumptions
B3: Number of replacements purchased | G3: 100 | I3: Percent marketable calves (1 - death loss) | N3: 0.97
B4: Year of purchase | G4: 2017 | I4: Annual cow death loss | N4: 0.005
B5: First year for calf sales | G5: 2018 | I5: Annual cull rate | N5: 0.15
B6: Cull cow weight, lbs/hd | G6: 1250
B7: Annual cow costs, $/year | G7: 800 | I7: Annual inflation rate on costs | N7: 0.01
B8: ="Price scenario to use (1-3) ("&IF(G8=1,'Prices and weights'!C5,IF(G8=2,'Prices and weights'!E5,'Prices and weights'!G5))&")" -> Price scenario to use (1-3) (USDA (As of Dec. '16)) | G8: 1 | I8: Annual increase in average weaning weight | N8: 0 | AJ8: Sensitivity to discount rate | AM8: Sensitivity to calf/cull prices
B9: Weaning weight scenario to use (1-3) | G9: 1 | I9: Discount rate (interest rate) | N9: 0.075 | R9: Values for sensitivity analysis down below | AJ9: 0.9 | AK9: <= % of base | AM9: 1.1 | AN9: <= % of base
B11: Net Present Value Analysis | R11: Annual cow costs, $/year | X11: Annual Cull Rate | AD11: Annual Cull Rate | AJ11: =N9*AJ9 -> 0.0675
C12: Cows at | F12: Prices, $/cwt | H12: Calf | I12: Cull Income | L12: Cost | M12: Net | N12: Discount | R12: =D33 -> 640 | S12: =E33 -> 720 | T12: =F33 -> 800 | U12: =G33 -> 880 | V12: =H33 -> 960 | X12: =Y12-H72 -> 0.1 | Y12: =Z12-H72 -> 0.125 | Z12: =N5 -> 0.15 | AA12: =Z12+H72 -> 0.175 | AB12: =AA12+H72 -> 0.2 | AD12: =X12 -> 0.1 | AE12: =Y12 -> 0.125 | AF12: =Z12 -> 0.15 | AG12: =AA12 -> 0.175 | AH12: =AB12 -> 0.2 | AJ12: Discount | AM12: Prices, $/cwt | AO12: Calf | AP12: Cull Income | AR12: Net
B13: Year | C13: BOY* | D13: Calf | E13: Calf wt | F13: Calf | G13: Cull | H13: Income | I13: Annual | J13: Age | K13: Cost | L13: Adj. | M13: Income | N13: factor | O13: NPV** | R13: Cost | S13: Cost | T13: Cost | U13: Cost | V13: Cost | X13: Cows at Beginning of Year (BOY) | AD13: Net Income | AJ13: factor | AK13: NPV** | AM13: Calf | AN13: Cull | AO13: Income | AP13: Annual | AQ13: Age | AR13: Income | AS13: NPV**
B14: =G5 -> 2018 | C14: =G3 -> 100 | D14: =IF(G5=B14,1,0) -> 1 | E14: =VLOOKUP(D14,weights,IF(G$9=1,2,IF(G$9=2,3,4)))*(1+N$8)^(B14-G$5) -> 542 | F14: =VLOOKUP(B14,Prices,IF(G$8=1,2,IF(G$8=2,4,6)))+('Prices and weights'!H$19-E14)*'Prices and weights'!H$20 -> 170.5986 | G14: =VLOOKUP(B14,Prices,IF(G$8=1,3,IF(G$8=2,5,7))) -> 75.6932 | H14: =IF(B14>=G$5,E14*F14/100*N$3*C14/G$3,0) -> 896.9050796 | I14: =IF(B14>=G$5,G$6*G14/100*(N$5*C14/G$3),0) -> 141.92475 | J14: =IF(B14>=G$5,G$6*G14/100*(C14*(1-N$4-N$5))/G$3,0) -> 799.509425 | K14: =G$7*(1+N$7)^(B14-G$4)*C14/G$3 -> 808 | L14: 0 | M14: =H14+I14-K14-L14 -> 230.8298296 | N14: =1/(1+N$9)^(B14-G$4) -> 0.9302325581 | O14: =SUMPRODUCT(M$14:M14,N$14:N14)+J14*N14 -> 958.4551206 | R14: =D$33*(1+N$7)^(B14-G$4)*C14/G$3 -> 646.4 | S14: =E$33*(1+N$7)^(B14-G$4)*C14/G$3 -> 727.2 | T14: =F$33*(1+N$7)^(B14-G$4)*C14/G$3 -> 808 | U14: =G$33*(1+N$7)^(B14-G$4)*C14/G$3 -> 888.8 | V14: =H$33*(1+N$7)^(B14-G$4)*C14/G$3 -> 969.6 | X14: =$G3 -> 100 | Y14: =$G3 -> 100 | Z14: =$G3 -> 100 | AA14: =$G3 -> 100 | AB14: =$G3 -> 100 | AD14: =IF(B14>=G$5,E14*F14/100*N$3*X14/G$3,0)+IF(B14>=G$5,G$6*G14/100*(AD$12*X14/G$3),0)-G$7*(1+N$7)^(B14-G$4)*X14/G$3-L14 -> 183.5215796 | AE14: =IF(B14>=G$5,E14*F14/100*N$3*Y14/G$3,0)+IF(B14>=G$5,G$6*G14/100*(AE$12*Y14/G$3),0)-G$7*(1+N$7)^(B14-G$4)*Y14/G$3-L14 -> 207.1757046 | AF14: =IF(B14>=G$5,E14*F14/100*N$3*Z14/G$3,0)+IF(B14>=G$5,G$6*G14/100*(AF$12*Z14/G$3),0)-G$7*(1+N$7)^(B14-G$4)*Z14/G$3-L14 -> 230.8298296 | AG14: =IF(B14>=G$5,E14*F14/100*N$3*AA14/G$3,0)+IF(B14>=G$5,G$6*G14/100*(AG$12*AA14/G$3),0)-G$7*(1+N$7)^(B14-G$4)*AA14/G$3-L14 -> 254.4839546 | AH14: =IF(B14>=G$5,E14*F14/100*N$3*AB14/G$3,0)+IF(B14>=G$5,G$6*G14/100*(AH$12*AB14/G$3),0)-G$7*(1+N$7)^(B14-G$4)*AB14/G$3-L14 -> 278.1380796 | AJ14: =1/(1+AJ$11)^(B14-G$4) -> 0.9367681499 | AK14: =SUMPRODUCT(M$14:M14,AJ$14:AJ14)+J14*AJ14 -> 965.1889973 | AM14: =VLOOKUP(B14,Prices,IF(G$8=1,2,IF(G$8=2,4,6)))*AM$9+('Prices and weights'!H$19-E14)*'Prices and weights'!H$20 -> 187.8016 | AN14: =G14*AM$9 -> 83.26252 | AO14: =IF(B14>=G$5,E14*AM14/100*N$3*C14/G$3,0) -> 987.3481318 | AP14: =IF(B14>=G$5,G$6*AN14/100*(N$5*C14/G$3),0) -> 156.117225 | AQ14: =IF(B14>=G$5,G$6*AN14/100*(C14*(1-N$4-N$5))/G$3,0) -> 879.4603675 | AR14: =AO14+AP14-K14-L14 -> 335.4653568 | AS14: =SUMPRODUCT(AR$14:AR14,N$14:N14)+AQ14*N14 -> 1130.163465
B15: =+B14+1 -> 2019 | C15: =C14*(1-N$4-N$5) -> 84.5 | D15: =IF(D14>0,D14+1,IF(G$5=B15,1,0)) -> 2 | E15: 552 | F15: =VLOOKUP(B15,Prices,IF(G$8=1,2,IF(G$8=2,4,6)))+('Prices and weights'!H$19-E15)*'Prices and weights'!H$20 -> 166.9566 | G15: =VLOOKUP(B15,Prices,IF(G$8=1,3,IF(G$8=2,5,7))) -> 74.4612 | H15: =IF(B15>=G$5,E15*F15/100*N$3*C15/G$3,0) -> 755.3897941 | I15: =G$6*G15/100*(N$5*C15/G$3) -> 117.9744637 | J15: =IF(B15>=G$5,G$6*G15/100*(C15*(1-N$4-N$5))/G$3,0) -> 664.5894791 | K15: =G$7*(1+N$7)^(B15-G$4)*C15/G$3 -> 689.5876 | L15: 0 | M15: =H15+I15-K15-L15 -> 183.7766578 | N15: 0.8653326122 | O15: =SUMPRODUCT(M$14:M15,N$14:N15)+J15*N15 -> 948.8443083 | R15: 551.67008 | S15: 620.62884 | T15: 689.5876 | U15: 758.54636 | V15: 827.50512 | X15: =X14*(1-$N$4-X$12) -> 89.5 | Y15: =Y14*(1-$N$4-Y$12) -> 87 | Z15: =Z14*(1-$N$4-Z$12) -> 84.5 | AA15: =AA14*(1-$N$4-AA$12) -> 82 | AB15: =AB14*(1-$N$4-AB$12) -> 79.5 | AD15: 152.9992825 | AE15: 168.9696983 | AF15: 183.7766578 | AG15: 197.4201611 | AH15: 209.9002081 | AJ15: 0.8775345666 | AK15: =SUMPRODUCT(M$14:M15,AJ$14:AJ15)+J15*AJ15 -> 960.7046428 | AM15: =VLOOKUP(B15,Prices,IF(G$8=1,2,IF(G$8=2,4,6)))*AM$9+('Prices and weights'!H$19-E15)*'Prices and weights'!H$20 -> 183.8796 | AN15: 81.90732 | AO15: 831.9573661 | AP15: 129.7719101 | AQ15: 731.048427 | AR15: 272.1416762 | AS15: =SUMPRODUCT(AR$14:AR15,N$14:N15)+AQ15*N15 -> 1180.15391
B16: 2020 | C16: 71.4025 | D16: =IF(D15>0,D15+1,IF(G$5=B16,1,0)) -> 3 | E16: 562 | F16: =VLOOKUP(B16,Prices,IF(G$8=1,2,IF(G$8=2,4,6)))+('Prices and weights'!H$19-E16)*'Prices and weights'!H$20 -> 153.0346 | G16: 68.706 | H16: 595.6773687 | I16: =G$6*G16/100*(N$5*C16/G$3) -> 91.98337809 | J16: 518.1730299 | K16: 588.5285372 | L16: 0 | M16: 99.13220956 | N16: 0.8049605695 | O16: =SUMPRODUCT(M$14:M16,N$14:N16)+J16*N16 -> 870.6597355 | R16: 470.8228298 | S16: 529.6756835 | T16: 588.5285372 | U16: 647.3813909 | V16: 706.2342447 | X16: =X15*(1-$N$4-X$12) -> 80.1025 | Y16: 75.69 | Z16: 71.4025 | AA16: 67.24 | AB16: 63.2025 | AD16: 76.81390663 | AE16: 88.83367707 | AF16: 99.13220956 | AG16: 107.7900189 | AH16: 114.8876201 | AJ16: 0.8220464324 | AK16: =SUMPRODUCT(M$14:M16,AJ$14:AJ16)+J16*AJ16 -> 884.9579721 | AM16: =VLOOKUP(B16,Prices,IF(G$8=1,2,IF(G$8=2,4,6)))*AM$9+('Prices and weights'!H$19-E16)*'Prices and weights'!H$20 -> 168.6496 | AN16: 75.5766 | AO16: 656.457755 | AP16: 101.1817159 | AQ16: 569.9903329 | AR16: 169.1109337 | AS16: =SUMPRODUCT(AR$14:AR16,N$14:N16)+AQ16*N16 -> 1142.501241
B17: 2021 | C17: 60.3351125 | D17: 4 | E17: 567 | F17: =VLOOKUP(B17,Prices,IF(G$8=1,2,IF(G$8=2,4,6)))+('Prices and weights'!H$19-E17)*'Prices and weights'!H$20 -> 149.2736 | G17: 67.2364 | H17: 495.3451633 | I17: 76.06342046 | J17: 428.4906019 | K17: 502.2796801 | L17: 0 | M17: 69.12890364 | N17: 0.7488005298 | O17: =SUMPRODUCT(M$14:M17,N$14:N17)+J17*N17 -> 826.1686276 | R17: 401.8237441 | S17: 452.0517121 | T17: 502.2796801 | U17: 552.5076481 | V17: 602.7356161 | X17: 71.6917375 | Y17: 65.8503 | Z17: 60.3351125 | AA17: 55.1368 | AB17: 50.2459875 | AD17: 52.01390742 | AE17: 61.61187154 | AF17: 69.12890364 | AG17: 74.75794135 | AH17: 78.684043 | AJ17: 0.7700669156 | AK17: =SUMPRODUCT(M$14:M17,AJ$14:AJ17)+J17*AJ17 -> 842.1959993 | AM17: =VLOOKUP(B17,Prices,IF(G$8=1,2,IF(G$8=2,4,6)))*AM$9+('Prices and weights'!H$19-E17)*'Prices and weights'!H$20 -> 164.5546 | AN17: 73.96004 | AO17: 546.0531883 | AP17: 83.66976251 | AQ17: 471.3396621 | AR17: 127.4432707 | AS17: =SUMPRODUCT(AR$14:AR17,N$14:N17)+AQ17*N17 -> 1132.050475
B18: 2022 | C18: 50.98317006 | D18: 5 | E18: 572 | F18: =VLOOKUP(B18,Prices,IF(G$8=1,2,IF(G$8=2,4,6)))+('Prices and weights'!H$19-E18)*'Prices and weights'!H$20 -> 141.3726 | G18: 63.9452 | H18: 399.9077716 | I18: 61.12741887 | J18: 344.3511263 | K18: 428.670593 | L18: 0 | M18: 32.36459751 | N18: 0.6965586324 | O18: =SUMPRODUCT(M$14:M18,N$14:N18)+J18*N18 -> 767.7192272 | R18: 342.9364744 | S18: 385.8035337 | T18: 428.670593 | U18: 471.5376523 | V18: 514.4047116 | X18: 64.16410506 | Y18: 57.289761 | Z18: 50.98317006 | AA18: 45.212176 | AB18: 39.94556006 | AD18: 15.08831363 | AE18: 24.91993963 | AF18: 32.36459751 | AG18: 37.73580863 | AH18: 41.32236119 | AJ18: 0.7213741598 | AK18: =SUMPRODUCT(M$14:M18,AJ$14:AJ18)+J18*AJ18 -> 783.9825518 | AM18: =VLOOKUP(B18,Prices,IF(G$8=1,2,IF(G$8=2,4,6)))*AM$9+('Prices and weights'!H$19-E18)*'Prices and weights'!H$20 -> 155.9056 | AN18: 70.33972 | AO18: 441.0179984 | AP18: 67.24016075 | AQ18: 378.7862389 | AR18: 79.58756617 | AS18: =SUMPRODUCT(AR$14:AR18,N$14:N18)+AQ18*N18 -> 1098.395317
B19: 2023 | C19: 43.0807787 | D19: 6 | E19: 572 | F19: =VLOOKUP(B19,Prices,IF(G$8=1,2,IF(G$8=2,4,6)))+('Prices and weights'!H$19-E19)*'Prices and weights'!H$20 -> 141.1426 | G19: 63.844 | H19: 337.3722994 | I19: 51.57092317 | J19: 290.5162005 | K19: 365.8489176 | L19: 0 | M19: 23.09430501 | N19: 0.6479615185 | O19: =SUMPRODUCT(M$14:M19,N$14:N19)+J19*N19 -> 731.066017 | R19: 292.6791341 | S19: 329.2640258 | T19: 365.8489176 | U19: 402.4338093 | V19: 439.0187011 | X19: 57.42687403 | Y19: 49.84209207 | Z19: 43.0807787 | AA19: 37.07398432 | AB19: 31.75672025 | AD19: 7.870055247 | AE19: 16.77472061 | AF19: 23.09430501 | AG19: 27.27096716 | AH19: 29.6955444 | AJ19: 0.6757603371 | AK19: =SUMPRODUCT(M$14:M19,AJ$14:AJ19)+J19*AJ19 -> 747.5020883 | AM19: =VLOOKUP(B19,Prices,IF(G$8=1,2,IF(G$8=2,4,6)))*AM$9+('Prices and weights'!H$19-E19)*'Prices and weights'!H$20 -> 155.6526 | AN19: 70.2284 | AO19: 372.0554643 | AP19: 56.72801548 | AQ19: 319.5678205 | AR19: 62.93456218 | AS19: =SUMPRODUCT(AR$14:AR19,N$14:N19)+AQ19*N19 -> 1082.395318
B20: 2024 | C20: 36.403258 | D20: 7 | E20: 567 | F20: =VLOOKUP(B20,Prices,IF(G$8=1,2,IF(G$8=2,4,6)))+('Prices and weights'!H$19-E20)*'Prices and weights'!H$20 -> 138.1236 | G20: 62.3304 | H20: 276.5431694 | I20: 42.54430561 | J20: 239.666255 | K20: 312.2337587 | L20: 0 | M20: 6.853716358 | N20: 0.6027549009 | O20: =SUMPRODUCT(M$14:M20,N$14:N20)+J20*N20 -> 691.4138195 | R20: 249.787007 | S20: 281.0103828 | T20: 312.2337587 | U20: 343.4571346 | V20: 374.6805104 | X20: 51.39705226 | Y20: 43.3626201 | Z20: 36.403258 | AA20: 30.40066714 | AB20: 25.2465926 | AD20: -10.34586378 | AE20: -0.2823097562 | AF20: 6.853716358 | AG20: 11.64511416 | AH20: 14.58841683 | AJ20: 0.6330307607 | AK20: =SUMPRODUCT(M$14:M20,AJ$14:AJ20)+J20*AJ20 -> 707.2374877 | AM20: =VLOOKUP(B20,Prices,IF(G$8=1,2,IF(G$8=2,4,6)))*AM$9+('Prices and weights'!H$19-E20)*'Prices and weights'!H$20 -> 152.2896 | AN20: 68.56344 | AO20: 304.9055242 | AP20: 46.79873617 | AQ20: 263.6328804 | AR20: 39.47050164 | AS20: =SUMPRODUCT(AR$14:AR20,N$14:N20)+AQ20*N20 -> 1058.024716
B21: 2025 | C21: 30.76075301 | D21: 8 | E21: 565 | F21: =VLOOKUP(B21,Prices,IF(G$8=1,2,IF(G$8=2,4,6)))+('Prices and weights'!H$19-E21)*'Prices and weights'!H$20 -> 137.192 | G21: 61.8464 | H21: 231.2841823 | I21: 35.67078441 | J21: 200.9454188 | K21: 266.4759014 | L21: 0 | M21: 0.479065352 | N21: 0.5607022334 | O21: =SUMPRODUCT(M$14:M21,N$14:N21)+J21*N21 -> 659.8929678 | R21: 213.1807211 | S21: 239.8283112 | T21: 266.4759014 | U21: 293.1234915 | V21: 319.7710816 | X21: 46.00036177 | Y21: 37.72547949 | Z21: 30.76075301 | AA21: 24.92854706 | AB21: 20.07104112 | AD21: -17.06457412 | AE21: -6.703670011 | AF21: 0.479065352 | AG21: 5.206175362 | AH21: 8.070844921 | AJ21: 0.5930030546 | AK21: =SUMPRODUCT(M$14:M21,AJ$14:AJ21)+J21*AJ21 -> 674.9667104 | AM21: =VLOOKUP(B21,Prices,IF(G$8=1,2,IF(G$8=2,4,6)))*AM$9+('Prices and weights'!H$19-E21)*'Prices and weights'!H$20 -> 151.248 | AN21: 68.03104 | AO21: 254.9803925 | AP21: 39.23786285 | AQ21: 221.0399607 | AR21: 27.74235397 | AS21: =SUMPRODUCT(AR$14:AR21,N$14:N21)+AQ21*N21 -> 1038.611505
B22: 2026 | C22: =C21*(1-N$4-N$5) -> 25.9928363 | D22: =IF(D21>0,D21+1,IF(G$5=B22,1,0)) -> 9 | E22: =VLOOKUP(D22,weights,IF(G$9=1,2,IF(G$9=2,3,4)))*(1+N$8)^(B22-G$5) -> 562 | F22: =VLOOKUP(B22,Prices,IF(G$8=1,2,IF(G$8=2,4,6)))+('Prices and weights'!H$19-E22)*'Prices and weights'!H$20 -> 135.6946 | G22: =VLOOKUP(B22,Prices,IF(G$8=1,3,IF(G$8=2,5,7))) -> 61.0764 | H22: =IF(B22>=G$5,E22*F22/100*N$3*C22/G$3,0) -> 192.2756493 | I22: =G$6*G22/100*(N$5*C22/G$3) -> 29.76654125 | J22: 167.6848491 | K22: =G$7*(1+N$7)^(B22-G$4)*C22/G$3 -> 227.423858 | L22: 0 | M22: =H22+I22-K22-L22 -> -5.38166748 | N22: =1/(1+N$9)^(B22-G$4) -> 0.5215834729 | O22: =SUMPRODUCT(M$14:M22,N$14:N22)+J22*N22 -> 631.8770798 | R22: 181.9390864 | S22: 204.6814722 | T22: 227.423858 | U22: 250.1662438 | V22: 272.9086296 | X22: 41.17032378 | Y22: 32.82116715 | Z22: 25.9928363 | AA22: 20.44140859 | AB22: 15.95647769 | AD22: -24.23992387 | AE22: -13.05980521 | AF22: -5.38166748 | AG22: -0.3307523563 | AH22: 2.787329268 | AJ22: 0.5555063743 | AK22: =SUMPRODUCT(M$14:M22,AJ$14:AJ22)+J22*AJ22 -> 645.9659152 | AM22: =VLOOKUP(B22,Prices,IF(G$8=1,2,IF(G$8=2,4,6)))*AM$9+('Prices and weights'!H$19-E22)*'Prices and weights'!H$20 -> 149.5756 | AN22: 67.18404 | AO22: 211.9446581 | AP22: 32.74319538 | AQ22: 184.453334 | AR22: 17.26399549 | AS22: =SUMPRODUCT(AR$14:AR22,N$14:N22)+AQ22*N22 -> 1019.886331
B23: 2027 | C23: =C22*(1-N$4-N$5) -> 21.96394667 | D23: =IF(D22>0,D22+1,IF(G$5=B23,1,0)) -> 10 | E23: =VLOOKUP(D23,weights,IF(G$9=1,2,IF(G$9=2,3,4)))*(1+N$8)^(B23-G$5) -> 559 | F23: =VLOOKUP(B23,Prices,IF(G$8=1,2,IF(G$8=2,4,6)))+('Prices and weights'!H$19-E23)*'Prices and weights'!H$20 -> 135.9472 | G23: =VLOOKUP(B23,Prices,IF(G$8=1,3,IF(G$8=2,5,7))) -> 61.0764 | H23: =IF(B23>=G$5,E23*F23/100*N$3*C23/G$3,0) -> 161.9064647 | I23: =G$6*G23/100*(N$5*C23/G$3) -> 25.15272736 | J23: 141.6936974 | K23: =G$7*(1+N$7)^(B23-G$4)*C23/G$3 -> 194.0948916 | L23: 0 | M23: =H23+I23-K23-L23 -> -7.035699565 | N23: =1/(1+N$9)^(B23-G$4) -> 0.4851939283 | O23: =SUMPRODUCT(M$14:M23,N$14:N23)+J23*N23 -> 609.7506769 | R23: 155.2759133 | S23: 174.6854025 | T23: 194.0948916 | U23: 213.5043808 | V23: 232.91387 | X23: 36.84743979 | Y23: 28.55441542 | Z23: 21.96394667 | AA23: 16.76195504 | AB23: 12.68539976 | AD23: -25.86900221 | AE23: -14.59682379 | AF23: -7.035699565 | AG23: -2.170098707 | AH23: 0.7788584576 | AJ23: 0.5203806785 | AK23: =SUMPRODUCT(M$14:M23,AJ$14:AJ23)+J23*AJ23 -> 622.889333 | AM23: =VLOOKUP(B23,Prices,IF(G$8=1,2,IF(G$8=2,4,6)))*AM$9+('Prices and weights'!H$19-E23)*'Prices and weights'!H$20 -> 149.8282 | AN23: 67.18404 | AO23: 178.4380566 | AP23: 27.66800009 | AQ23: 155.8630672 | AR23: 12.01116512 | AS23: =SUMPRODUCT(AR$14:AR23,N$14:N23)+AQ23*N23 -> 1005.130079
B24: * BOY = Beginning of year | E24: =AVERAGE(E14:E23) -> 562 | F24: =AVERAGE(F14:F23) -> 146.9336 | G24: =AVERAGE(G14:G23) -> 66.02156 | O24: ** Net present value if replacement is sold in this year
B26: The Net Present Value (NPV) reflects the amount that could be paid for a replacement such that the rate of return from the investment would be exactly equal to the discount rate given all of the assumptions used in the analysis. If you have a targeted rate of return for investing in replacements, enter that as the discount rate.
B31: Sensitivity Analysis of NPV to varying annual cow costs
D32: Annual cow costs, $/year
D33: =E33-H46 -> 640 | E33: =F33-H46 -> 720 | F33: =G7 -> 800 | G33: =F33+H46 -> 880 | H33: =G33+H46 -> 960
B34: Year | C34: Calf | D34: NPV** | E34: NPV** | F34: NPV** | G34: NPV** | H34: NPV**
B35: =B14 -> 2018 | C35: =D14 -> 1 | D35: =SUMPRODUCT(M$14:M14,N$14:N14)+J14*N14+SUMPRODUCT(K$14:K14,N$14:N14)-SUMPRODUCT(R$14:R14,N$14:N14) -> 1108.780702 | E35: =SUMPRODUCT(M$14:M14,N$14:N14)+J14*N14+SUMPRODUCT(K$14:K14,N$14:N14)-SUMPRODUCT(S$14:S14,N$14:N14) -> 1033.617911 | F35: =SUMPRODUCT(M$14:M14,N$14:N14)+J14*N14+SUMPRODUCT(K$14:K14,N$14:N14)-SUMPRODUCT(T$14:T14,N$14:N14) -> 958.4551206 | G35: =SUMPRODUCT(M$14:M14,N$14:N14)+J14*N14+SUMPRODUCT(K$14:K14,N$14:N14)-SUMPRODUCT(U$14:U14,N$14:N14) -> 883.2923299 | H35: =SUMPRODUCT(M$14:M14,N$14:N14)+J14*N14+SUMPRODUCT(K$14:K14,N$14:N14)-SUMPRODUCT(V$14:V14,N$14:N14) -> 808.1295392
B36: =+B35+1 -> 2019 | C36: =D15 -> 2 | D36: =SUMPRODUCT(M$14:M15,N$14:N15)+J15*N15+SUMPRODUCT(K$14:K15,N$14:N15)-SUMPRODUCT(R$14:R15,N$14:N15) -> 1218.514418 | E36: =SUMPRODUCT(M$14:M15,N$14:N15)+J15*N15+SUMPRODUCT(K$14:K15,N$14:N15)-SUMPRODUCT(S$14:S15,N$14:N15) -> 1083.679363 | F36: =SUMPRODUCT(M$14:M15,N$14:N15)+J15*N15+SUMPRODUCT(K$14:K15,N$14:N15)-SUMPRODUCT(T$14:T15,N$14:N15) -> 948.8443083 | G36: =SUMPRODUCT(M$14:M15,N$14:N15)+J15*N15+SUMPRODUCT(K$14:K15,N$14:N15)-SUMPRODUCT(U$14:U15,N$14:N15) -> 814.0092537 | H36: =SUMPRODUCT(M$14:M15,N$14:N15)+J15*N15+SUMPRODUCT(K$14:K15,N$14:N15)-SUMPRODUCT(V$14:V15,N$14:N15) -> 679.1741991
B37: 2020 | C37: 3 | D37: =SUMPRODUCT(M$14:M16,N$14:N16)+J16*N16+SUMPRODUCT(K$14:K16,N$14:N16)-SUMPRODUCT(R$14:R16,N$14:N16) -> 1235.078298 | E37: =SUMPRODUCT(M$14:M16,N$14:N16)+J16*N16+SUMPRODUCT(K$14:K16,N$14:N16)-SUMPRODUCT(S$14:S16,N$14:N16) -> 1052.869017 | F37: =SUMPRODUCT(M$14:M16,N$14:N16)+J16*N16+SUMPRODUCT(K$14:K16,N$14:N16)-SUMPRODUCT(T$14:T16,N$14:N16) -> 870.6597355 | G37: =SUMPRODUCT(M$14:M16,N$14:N16)+J16*N16+SUMPRODUCT(K$14:K16,N$14:N16)-SUMPRODUCT(U$14:U16,N$14:N16) -> 688.4504542 | H37: =SUMPRODUCT(M$14:M16,N$14:N16)+J16*N16+SUMPRODUCT(K$14:K16,N$14:N16)-SUMPRODUCT(V$14:V16,N$14:N16) -> 506.2411729
B38: 2021 | C38: 4 | D38: =SUMPRODUCT(M$14:M17,N$14:N17)+J17*N17+SUMPRODUCT(K$14:K17,N$14:N17)-SUMPRODUCT(R$14:R17,N$14:N17) -> 1265.808648 | E38: =SUMPRODUCT(M$14:M17,N$14:N17)+J17*N17+SUMPRODUCT(K$14:K17,N$14:N17)-SUMPRODUCT(S$14:S17,N$14:N17) -> 1045.988638 | F38: =SUMPRODUCT(M$14:M17,N$14:N17)+J17*N17+SUMPRODUCT(K$14:K17,N$14:N17)-SUMPRODUCT(T$14:T17,N$14:N17) -> 826.1686276 | G38: =SUMPRODUCT(M$14:M17,N$14:N17)+J17*N17+SUMPRODUCT(K$14:K17,N$14:N17)-SUMPRODUCT(U$14:U17,N$14:N17) -> 606.3486173 | H38: =SUMPRODUCT(M$14:M17,N$14:N17)+J17*N17+SUMPRODUCT(K$14:K17,N$14:N17)-SUMPRODUCT(V$14:V17,N$14:N17) -> 386.5286069
B39: 2022 | C39: 5 | D39: =SUMPRODUCT(M$14:M18,N$14:N18)+J18*N18+SUMPRODUCT(K$14:K18,N$14:N18)-SUMPRODUCT(R$14:R18,N$14:N18) -> 1267.078088 | E39: =SUMPRODUCT(M$14:M18,N$14:N18)+J18*N18+SUMPRODUCT(K$14:K18,N$14:N18)-SUMPRODUCT(S$14:S18,N$14:N18) -> 1017.398658 | F39: =SUMPRODUCT(M$14:M18,N$14:N18)+J18*N18+SUMPRODUCT(K$14:K18,N$14:N18)-SUMPRODUCT(T$14:T18,N$14:N18) -> 767.7192272 | G39: =SUMPRODUCT(M$14:M18,N$14:N18)+J18*N18+SUMPRODUCT(K$14:K18,N$14:N18)-SUMPRODUCT(U$14:U18,N$14:N18) -> 518.0397967 | H39: =SUMPRODUCT(M$14:M18,N$14:N18)+J18*N18+SUMPRODUCT(K$14:K18,N$14:N18)-SUMPRODUCT(V$14:V18,N$14:N18) -> 268.3603662
B40: 2023 | C40: 6 | D40: =SUMPRODUCT(M$14:M19,N$14:N19)+J19*N19+SUMPRODUCT(K$14:K19,N$14:N19)-SUMPRODUCT(R$14:R19,N$14:N19) -> 1277.836082 | E40: =SUMPRODUCT(M$14:M19,N$14:N19)+J19*N19+SUMPRODUCT(K$14:K19,N$14:N19)-SUMPRODUCT(S$14:S19,N$14:N19) -> 1004.45105 | F40: =SUMPRODUCT(M$14:M19,N$14:N19)+J19*N19+SUMPRODUCT(K$14:K19,N$14:N19)-SUMPRODUCT(T$14:T19,N$14:N19) -> 731.066017 | G40: =SUMPRODUCT(M$14:M19,N$14:N19)+J19*N19+SUMPRODUCT(K$14:K19,N$14:N19)-SUMPRODUCT(U$14:U19,N$14:N19) -> 457.6809844 | H40: =SUMPRODUCT(M$14:M19,N$14:N19)+J19*N19+SUMPRODUCT(K$14:K19,N$14:N19)-SUMPRODUCT(V$14:V19,N$14:N19) -> 184.2959519
B41: 2024 | C41: 7 | D41: =SUMPRODUCT(M$14:M20,N$14:N20)+J20*N20+SUMPRODUCT(K$14:K20,N$14:N20)-SUMPRODUCT(R$14:R20,N$14:N20) -> 1275.82397 | E41: =SUMPRODUCT(M$14:M20,N$14:N20)+J20*N20+SUMPRODUCT(K$14:K20,N$14:N20)-SUMPRODUCT(S$14:S20,N$14:N20) -> 983.6188948 | F41: =SUMPRODUCT(M$14:M20,N$14:N20)+J20*N20+SUMPRODUCT(K$14:K20,N$14:N20)-SUMPRODUCT(T$14:T20,N$14:N20) -> 691.4138195 | G41: =SUMPRODUCT(M$14:M20,N$14:N20)+J20*N20+SUMPRODUCT(K$14:K20,N$14:N20)-SUMPRODUCT(U$14:U20,N$14:N20) -> 399.2087441 | H41: =SUMPRODUCT(M$14:M20,N$14:N20)+J20*N20+SUMPRODUCT(K$14:K20,N$14:N20)-SUMPRODUCT(V$14:V20,N$14:N20) -> 107.0036687
B42: 2025 | C42: 8 | D42: =SUMPRODUCT(M$14:M21,N$14:N21)+J21*N21+SUMPRODUCT(K$14:K21,N$14:N21)-SUMPRODUCT(R$14:R21,N$14:N21) -> 1274.185845 | E42: =SUMPRODUCT(M$14:M21,N$14:N21)+J21*N21+SUMPRODUCT(K$14:K21,N$14:N21)-SUMPRODUCT(S$14:S21,N$14:N21) -> 967.0394065 | F42: =SUMPRODUCT(M$14:M21,N$14:N21)+J21*N21+SUMPRODUCT(K$14:K21,N$14:N21)-SUMPRODUCT(T$14:T21,N$14:N21) -> 659.8929678 | G42: =SUMPRODUCT(M$14:M21,N$14:N21)+J21*N21+SUMPRODUCT(K$14:K21,N$14:N21)-SUMPRODUCT(U$14:U21,N$14:N21) -> 352.7465292 | H42: =SUMPRODUCT(M$14:M21,N$14:N21)+J21*N21+SUMPRODUCT(K$14:K21,N$14:N21)-SUMPRODUCT(V$14:V21,N$14:N21) -> 45.6000905
B43: 2026 | C43: 9 | D43: =SUMPRODUCT(M$14:M22,N$14:N22)+J22*N22+SUMPRODUCT(K$14:K22,N$14:N22)-SUMPRODUCT(R$14:R22,N$14:N22) -> 1269.894062 | E43: =SUMPRODUCT(M$14:M22,N$14:N22)+J22*N22+SUMPRODUCT(K$14:K22,N$14:N22)-SUMPRODUCT(S$14:S22,N$14:N22) -> 950.8855711 | F43: =SUMPRODUCT(M$14:M22,N$14:N22)+J22*N22+SUMPRODUCT(K$14:K22,N$14:N22)-SUMPRODUCT(T$14:T22,N$14:N22) -> 631.8770798 | G43: =SUMPRODUCT(M$14:M22,N$14:N22)+J22*N22+SUMPRODUCT(K$14:K22,N$14:N22)-SUMPRODUCT(U$14:U22,N$14:N22) -> 312.8685886 | H43: =SUMPRODUCT(M$14:M22,N$14:N22)+J22*N22+SUMPRODUCT(K$14:K22,N$14:N22)-SUMPRODUCT(V$14:V22,N$14:N22) -> -6.139902664
B44: 2027 | C44: 10 | D44: =SUMPRODUCT(M$14:M23,N$14:N23)+J23*N23+SUMPRODUCT(K$14:K23,N$14:N23)-SUMPRODUCT(R$14:R23,N$14:N23) -> 1266.602392 | E44: =SUMPRODUCT(M$14:M23,N$14:N23)+J23*N23+SUMPRODUCT(K$14:K23,N$14:N23)-SUMPRODUCT(S$14:S23,N$14:N23) -> 938.1765344 | F44: =SUMPRODUCT(M$14:M23,N$14:N23)+J23*N23+SUMPRODUCT(K$14:K23,N$14:N23)-SUMPRODUCT(T$14:T23,N$14:N23) -> 609.7506769 | G44: =SUMPRODUCT(M$14:M23,N$14:N23)+J23*N23+SUMPRODUCT(K$14:K23,N$14:N23)-SUMPRODUCT(U$14:U23,N$14:N23) -> 281.3248193 | H44: =SUMPRODUCT(M$14:M23,N$14:N23)+J23*N23+SUMPRODUCT(K$14:K23,N$14:N23)-SUMPRODUCT(V$14:V23,N$14:N23) -> -47.10103821
B45: ** Net present value if replacement is sold in this year
B46: Increment to use for annual costs/cow | H46: =G7*0.1 -> 80
B48: Values to include in chart (Calf number)
D49: Annual cow costs, $/year
B50: Calves | D50: =D33 -> 640 | E50: =E33 -> 720 | F50: =F33 -> 800 | G50: =G33 -> 880 | H50: =H33 -> 960
B51: 4 | C51: =B51&" calves" -> 4 calves | D51: =VLOOKUP($B51,$C$35:$H$44,2) -> 1265.808648 | E51: =VLOOKUP($B51,$C$35:$H$44,3) -> 1045.988638 | F51: =VLOOKUP($B51,$C$35:$H$44,4) -> 826.1686276 | G51: =VLOOKUP($B51,$C$35:$H$44,5) -> 606.3486173 | H51: =VLOOKUP($B51,$C$35:$H$44,6) -> 386.5286069
B52: 7 | C52: =B52&" calves" -> 7 calves | D52: =VLOOKUP($B52,$C$35:$H$44,2) -> 1275.82397 | E52: =VLOOKUP($B52,$C$35:$H$44,3) -> 983.6188948 | F52: =VLOOKUP($B52,$C$35:$H$44,4) -> 691.4138195 | G52: =VLOOKUP($B52,$C$35:$H$44,5) -> 399.2087441 | H52: =VLOOKUP($B52,$C$35:$H$44,6) -> 107.0036687
B53: 10 | C53: =B53&" calves" -> 10 calves | D53: =VLOOKUP($B53,$C$35:$H$44,2) -> 1266.602392 | E53: =VLOOKUP($B53,$C$35:$H$44,3) -> 938.1765344 | F53: =VLOOKUP($B53,$C$35:$H$44,4) -> 609.7506769 | G53: =VLOOKUP($B53,$C$35:$H$44,5) -> 281.3248193 | H53: =VLOOKUP($B53,$C$35:$H$44,6) -> -47.10103821
B57: Sensitivity Analysis of NPV to varying annual cow cull rates
D58: Annual cow cull rate, %
D59: =E59-H72 -> 0.1 | E59: =F59-H72 -> 0.125 | F59: =N5 -> 0.15 | G59: =F59+H72 -> 0.175 | H59: =G59+H72 -> 0.2
B60: Year | C60: Calf | D60: NPV** | E60: NPV** | F60: NPV** | G60: NPV** | H60: NPV**
B61: =B14 -> 2018 | C61: =D14 -> 1 | D61: =SUMPRODUCT(AD$14:AD14,N$14:N14)+IF(B14>=G$5,G$6*G14/100*(X14*(1-N$4-X$12))/G$3,0)*N14 -> 958.4551206 | E61: =SUMPRODUCT(AE$14:AE14,N$14:N14)+IF(B14>=G$5,G$6*G14/100*(Y14*(1-N$4-Y$12))/G$3,0)*N14 -> 958.4551206 | F61: =SUMPRODUCT(AF$14:AF14,N$14:N14)+IF(B14>=G$5,G$6*G14/100*(Z14*(1-N$4-Z$12))/G$3,0)*N14 -> 958.4551206 | G61: =SUMPRODUCT(AG$14:AG14,N$14:N14)+IF(B14>=G$5,G$6*G14/100*(AA14*(1-N$4-AA$12))/G$3,0)*N14 -> 958.4551206 | H61: =SUMPRODUCT(AH$14:AH14,N$14:N14)+IF(B14>=G$5,G$6*G14/100*(AB14*(1-N$4-AB$12))/G$3,0)*N14 -> 958.4551206
B62: =+B61+1 -> 2019 | C62: =D15 -> 2 | D62: =SUMPRODUCT(AD$14:AD15,N$14:N15)+IF(B15>=G$5,G$6*G15/100*(X15*(1-N$4-X$12))/G$3,0)*N15 -> 948.2756212 | E62: =SUMPRODUCT(AE$14:AE15,N$14:N15)+IF(B15>=G$5,G$6*G15/100*(Y15*(1-N$4-Y$12))/G$3,0)*N15 -> 948.5599648 | F62: =SUMPRODUCT(AF$14:AF15,N$14:N15)+IF(B15>=G$5,G$6*G15/100*(Z15*(1-N$4-Z$12))/G$3,0)*N15 -> 948.8443083 | G62: =SUMPRODUCT(AG$14:AG15,N$14:N15)+IF(B15>=G$5,G$6*G15/100*(AA15*(1-N$4-AA$12))/G$3,0)*N15 -> 949.1286519 | H62: =SUMPRODUCT(AH$14:AH15,N$14:N15)+IF(B15>=G$5,G$6*G15/100*(AB15*(1-N$4-AB$12))/G$3,0)*N15 -> 949.4129955
B63: 2020 | C63: 3 | D63: =SUMPRODUCT(AD$14:AD16,N$14:N16)+IF(B16>=G$5,G$6*G16/100*(X16*(1-N$4-X$12))/G$3,0)*N16 -> 860.5646902 | E63: =SUMPRODUCT(AE$14:AE16,N$14:N16)+IF(B16>=G$5,G$6*G16/100*(Y16*(1-N$4-Y$12))/G$3,0)*N16 -> 865.6806493 | F63: =SUMPRODUCT(AF$14:AF16,N$14:N16)+IF(B16>=G$5,G$6*G16/100*(Z16*(1-N$4-Z$12))/G$3,0)*N16 -> 870.6597355 | G63: =SUMPRODUCT(AG$14:AG16,N$14:N16)+IF(B16>=G$5,G$6*G16/100*(AA16*(1-N$4-AA$12))/G$3,0)*N16 -> 875.5019486 | H63: =SUMPRODUCT(AH$14:AH16,N$14:N16)+IF(B16>=G$5,G$6*G16/100*(AB16*(1-N$4-AB$12))/G$3,0)*N16 -> 880.2072888
B64: 2021 | C64: 4 | D64: =SUMPRODUCT(AD$14:AD17,N$14:N17)+IF(B17>=G$5,G$6*G17/100*(X17*(1-N$4-X$12))/G$3,0)*N17 -> 807.6992079 | E64: =SUMPRODUCT(AE$14:AE17,N$14:N17)+IF(B17>=G$5,G$6*G17/100*(Y17*(1-N$4-Y$12))/G$3,0)*N17 -> 817.1226426 | F64: =SUMPRODUCT(AF$14:AF17,N$14:N17)+IF(B17>=G$5,G$6*G17/100*(Z17*(1-N$4-Z$12))/G$3,0)*N17 -> 826.1686276 | G64: =SUMPRODUCT(AG$14:AG17,N$14:N17)+IF(B17>=G$5,G$6*G17/100*(AA17*(1-N$4-AA$12))/G$3,0)*N17 -> 834.844076 | H64: =SUMPRODUCT(AH$14:AH17,N$14:N17)+IF(B17>=G$5,G$6*G17/100*(AB17*(1-N$4-AB$12))/G$3,0)*N17 -> 843.1559011
B65: 2022 | C65: 5 | D65: =SUMPRODUCT(AD$14:AD18,N$14:N18)+IF(B18>=G$5,G$6*G18/100*(X18*(1-N$4-X$12))/G$3,0)*N18 -> 734.1385905 | E65: =SUMPRODUCT(AE$14:AE18,N$14:N18)+IF(B18>=G$5,G$6*G18/100*(Y18*(1-N$4-Y$12))/G$3,0)*N18 -> 751.4430825 | F65: =SUMPRODUCT(AF$14:AF18,N$14:N18)+IF(B18>=G$5,G$6*G18/100*(Z18*(1-N$4-Z$12))/G$3,0)*N18 -> 767.7192272 | G65: =SUMPRODUCT(AG$14:AG18,N$14:N18)+IF(B18>=G$5,G$6*G18/100*(AA18*(1-N$4-AA$12))/G$3,0)*N18 -> 783.0108029 | H65: =SUMPRODUCT(AH$14:AH18,N$14:N18)+IF(B18>=G$5,G$6*G18/100*(AB18*(1-N$4-AB$12))/G$3,0)*N18 -> 797.3605135
B66: 2023 | C66: 6 | D66: =SUMPRODUCT(AD$14:AD19,N$14:N19)+IF(B19>=G$5,G$6*G19/100*(X19*(1-N$4-X$12))/G$3,0)*N19 -> 685.2796945 | E66: =SUMPRODUCT(AE$14:AE19,N$14:N19)+IF(B19>=G$5,G$6*G19/100*(Y19*(1-N$4-Y$12))/G$3,0)*N19 -> 709.0373338 | F66: =SUMPRODUCT(AF$14:AF19,N$14:N19)+IF(B19>=G$5,G$6*G19/100*(Z19*(1-N$4-Z$12))/G$3,0)*N19 -> 731.066017 | G66: =SUMPRODUCT(AG$14:AG19,N$14:N19)+IF(B19>=G$5,G$6*G19/100*(AA19*(1-N$4-AA$12))/G$3,0)*N19 -> 751.4681851 | H66: =SUMPRODUCT(AH$14:AH19,N$14:N19)+IF(B19>=G$5,G$6*G19/100*(AB19*(1-N$4-AB$12))/G$3,0)*N19 -> 770.3418342
B67: 2024 | C67: 7 | D67: =SUMPRODUCT(AD$14:AD20,N$14:N20)+IF(B20>=G$5,G$6*G20/100*(X20*(1-N$4-X$12))/G$3,0)*N20 -> 629.2955276 | E67: =SUMPRODUCT(AE$14:AE20,N$14:N20)+IF(B20>=G$5,G$6*G20/100*(Y20*(1-N$4-Y$12))/G$3,0)*N20 -> 661.8046609 | F67: =SUMPRODUCT(AF$14:AF20,N$14:N20)+IF(B20>=G$5,G$6*G20/100*(Z20*(1-N$4-Z$12))/G$3,0)*N20 -> 691.4138195 | G67: =SUMPRODUCT(AG$14:AG20,N$14:N20)+IF(B20>=G$5,G$6*G20/100*(AA20*(1-N$4-AA$12))/G$3,0)*N20 -> 718.3543012 | H67: =SUMPRODUCT(AH$14:AH20,N$14:N20)+IF(B20>=G$5,G$6*G20/100*(AB20*(1-N$4-AB$12))/G$3,0)*N20 -> 742.8420187
B68: 2025 | C68: 8 | D68: =SUMPRODUCT(AD$14:AD21,N$14:N21)+IF(B21>=G$5,G$6*G21/100*(X21*(1-N$4-X$12))/G$3,0)*N21 -> 582.1584964 | E68: =SUMPRODUCT(AE$14:AE21,N$14:N21)+IF(B21>=G$5,G$6*G21/100*(Y21*(1-N$4-Y$12))/G$3,0)*N21 -> 623.1469843 | F68: =SUMPRODUCT(AF$14:AF21,N$14:N21)+IF(B21>=G$5,G$6*G21/100*(Z21*(1-N$4-Z$12))/G$3,0)*N21 -> 659.8929678 | G68: =SUMPRODUCT(AG$14:AG21,N$14:N21)+IF(B21>=G$5,G$6*G21/100*(AA21*(1-N$4-AA$12))/G$3,0)*N21 -> 692.8097694 | H68: =SUMPRODUCT(AH$14:AH21,N$14:N21)+IF(B21>=G$5,G$6*G21/100*(AB21*(1-N$4-AB$12))/G$3,0)*N21 -> 722.2750219
B69: 2026 | C69: 9 | D69: =SUMPRODUCT(AD$14:AD22,N$14:N22)+IF(B22>=G$5,G$6*G22/100*(X22*(1-N$4-X$12))/G$3,0)*N22 -> 537.7838399 | E69: =SUMPRODUCT(AE$14:AE22,N$14:N22)+IF(B22>=G$5,G$6*G22/100*(Y22*(1-N$4-Y$12))/G$3,0)*N22 -> 587.7713088 | F69: =SUMPRODUCT(AF$14:AF22,N$14:N22)+IF(B22>=G$5,G$6*G22/100*(Z22*(1-N$4-Z$12))/G$3,0)*N22 -> 631.8770798 | G69: =SUMPRODUCT(AG$14:AG22,N$14:N22)+IF(B22>=G$5,G$6*G22/100*(AA22*(1-N$4-AA$12))/G$3,0)*N22 -> 670.777383 | H69: =SUMPRODUCT(AH$14:AH22,N$14:N22)+IF(B22>=G$5,G$6*G22/100*(AB22*(1-N$4-AB$12))/G$3,0)*N22 -> 705.0766336
B70: 2027 | C70: 10 | D70: =SUMPRODUCT(AD$14:AD23,N$14:N23)+IF(B23>=G$5,G$6*G23/100*(X23*(1-N$4-X$12))/G$3,0)*N23 -> 500.6638581 | E70: =SUMPRODUCT(AE$14:AE23,N$14:N23)+IF(B23>=G$5,G$6*G23/100*(Y23*(1-N$4-Y$12))/G$3,0)*N23 -> 559.0056907 | F70: =SUMPRODUCT(AF$14:AF23,N$14:N23)+IF(B23>=G$5,G$6*G23/100*(Z23*(1-N$4-Z$12))/G$3,0)*N23 -> 609.7506769 | G70: =SUMPRODUCT(AG$14:AG23,N$14:N23)+IF(B23>=G$5,G$6*G23/100*(AA23*(1-N$4-AA$12))/G$3,0)*N23 -> 653.8914481 | H70: =SUMPRODUCT(AH$14:AH23,N$14:N23)+IF(B23>=G$5,G$6*G23/100*(AB23*(1-N$4-AB$12))/G$3,0)*N23 -> 692.2974063
B71: ** Net present value if replacement is sold in this year
B72: Increment to use for cow cull rate | H72: 0.025
B74: Values to include in chart (Calf number)
D75: Annual cow cull rate, %
B76: Calves | D76: =D59 -> 0.1 | E76: =E59 -> 0.125 | F76: =F59 -> 0.15 | G76: =G59 -> 0.175 | H76: =H59 -> 0.2
B77: 4 | C77: =B77&" calves" -> 4 calves | D77: =VLOOKUP($B77,$C$61:$H$70,2) -> 807.6992079 | E77: =VLOOKUP($B77,$C$61:$H$70,3) -> 817.1226426 | F77: =VLOOKUP($B77,$C$61:$H$70,4) -> 826.1686276 | G77: =VLOOKUP($B77,$C$61:$H$70,5) -> 834.844076 | H77: =VLOOKUP($B77,$C$61:$H$70,6) -> 843.1559011
B78: 7 | C78: =B78&" calves" -> 7 calves | D78: =VLOOKUP($B78,$C$61:$H$70,2) -> 629.2955276 | E78: =VLOOKUP($B78,$C$61:$H$70,3) -> 661.8046609 | F78: =VLOOKUP($B78,$C$61:$H$70,4) -> 691.4138195 | G78: =VLOOKUP($B78,$C$61:$H$70,5) -> 718.3543012 | H78: =VLOOKUP($B78,$C$61:$H$70,6) -> 742.8420187
B79: 10 | C79: =B79&" calves" -> 10 calves | D79: =VLOOKUP($B79,$C$61:$H$70,2) -> 500.6638581 | E79: =VLOOKUP($B79,$C$61:$H$70,3) -> 559.0056907 | F79: =VLOOKUP($B79,$C$61:$H$70,4) -> 609.7506769 | G79: =VLOOKUP($B79,$C$61:$H$70,5) -> 653.8914481 | H79: =VLOOKUP($B79,$C$61:$H$70,6) -> 692.2974063

Sheet Sensitivity Table
B2: Sensitivity of results in "Net present value" tab
B3: Range NPV values are pulled from | D3: O14:O23 | E3: E35:E44 | F3: AK14:AK23 | G3: AS14:AS23
B5: Table 1. Net Present Value of Beef Replacements, Sensitivity Analysis Summary* | I5: Marginal Impacts (relative to Base Case):
C6: Number | E6: 10% Lower | F6: 10% Lower | G6: 10% Higher | I6: Costs | J6: Discount | K6: Prices | L6: Costs | M6: Discount | N6: Prices
B7: Year | C7: of Calves | D7: Base Case | E7: Cow Costs/yr | F7: Discount Rate | G7: Calf Prices | I7: $/head | J7: $/head | K7: $/head | L7: % | M7: % | N7: %
B8: ='Net present value'!B14 -> 2018 | C8: ='Net present value'!D14 -> 1 | D8: ='Net present value'!O14 -> 958.4551206 | E8: ='Net present value'!E35 -> 1033.617911 | F8: ='Net present value'!AK14 -> 965.1889973 | G8: ='Net present value'!AS14 -> 1130.163465 | I8: =E8-$D8 -> 75.1627907 | J8: =F8-$D8 -> 6.733876725 | K8: =G8-$D8 -> 171.7083439 | L8: =I8/$D8 -> 0.07842077222 | M8: =J8/$D8 -> 0.007025761124 | N8: =K8/$D8 -> 0.1791511571
B9: ='Net present value'!B15 -> 2019 | C9: ='Net present value'!D15 -> 2 | D9: ='Net present value'!O15 -> 948.8443083 | E9: ='Net present value'!E36 -> 1083.679363 | F9: ='Net present value'!AK15 -> 960.7046428 | G9: ='Net present value'!AS15 -> 1180.15391 | I9: 134.8350546 | J9: 11.86033446 | K9: 231.3096013 | L9: 0.1421045091 | M9: 0.01249976877 | N9: 0.2437803539
B10: ='Net present value'!B16 -> 2020 | C10: ='Net present value'!D16 -> 3 | D10: ='Net present value'!O16 -> 870.6597355 | E10: ='Net present value'!E37 -> 1052.869017 | F10: ='Net present value'!AK16 -> 884.9579721 | G10: ='Net present value'!AS16 -> 1142.501241 | I10: 182.2092813 | J10: 14.29823664 | K10: 271.8415057 | L10: 0.2092772571 | M10: 0.01642230146 | N10: 0.3122247356
B11: ='Net present value'!B17 -> 2021 | C11: ='Net present value'!D17 -> 4 | D11: ='Net present value'!O17 -> 826.1686276 | E11: ='Net present value'!E38 -> 1045.988638 | F11: ='Net present value'!AK17 -> 842.1959993 | G11: ='Net present value'!AS17 -> 1132.050475 | I11: 219.8200103 | J11: 16.02737169 | K11: 305.8818478 | L11: 0.2660716021 | M11: 0.01939963726 | N11: 0.3702414224
B12: ='Net present value'!B18 -> 2022 | C12: ='Net present value'!D18 -> 5 | D12: ='Net present value'!O18 -> 767.7192272 | E12: ='Net present value'!E39 -> 1017.398658 | F12: ='Net present value'!AK18 -> 783.9825518 | G12: ='Net present value'!AS18 -> 1098.395317 | I12: 249.6794305 | J12: 16.26332462 | K12: 330.6760903 | L12: 0.3252223231 | M12: 0.02118394856 | N12: 0.4307252946
B13: ='Net present value'!B19 -> 2023 | C13: ='Net present value'!D19 -> 6 | D13: ='Net present value'!O19 -> 731.066017 | E13: ='Net present value'!E40 -> 1004.45105 | F13: ='Net present value'!AK19 -> 747.5020883 | G13: ='Net present value'!AS19 -> 1082.395318 | I13: 273.3850325 | J13: 16.43607134 | K13: 351.3293007 | L13: 0.3739539606 | M13: 0.02248233532 | N13: 0.4805712378
B14: ='Net present value'!B20 -> 2024 | C14: ='Net present value'!D20 -> 7 | D14: ='Net present value'!O20 -> 691.4138195 | E14: ='Net present value'!E41 -> 983.6188948 | F14: ='Net present value'!AK20 -> 707.2374877 | G14: ='Net present value'!AS20 -> 1058.024716 | I14: 292.2050754 | J14: 15.82366827 | K14: 366.610897 | L14: 0.422619663 | M14: 0.02288595892 | N14: 0.5302336845
B15: ='Net present value'!B21 -> 2025 | C15: ='Net present value'!D21 -> 8 | D15: ='Net present value'!O21 -> 659.8929678 | E15: ='Net present value'!E42 -> 967.0394065 | F15: ='Net present value'!AK21 -> 674.9667104 | G15: ='Net present value'!AS21 -> 1038.611505 | I15: 307.1464387 | J15: 15.07374257 | K15: 378.7185374 | L15: 0.4654488737 | M15: 0.02284270829 | N15: 0.5739090365
B16: ='Net present value'!B22 -> 2026 | C16: ='Net present value'!D22 -> 9 | D16: ='Net present value'!O22 -> 631.8770798 | E16: ='Net present value'!E43 -> 950.8855711 | F16: ='Net present value'!AK22 -> 645.9659152 | G16: ='Net present value'!AS22 -> 1019.886331 | I16: 319.0084912 | J16: 14.08883535 | K16: 388.009251 | L16: 0.5048584629 | M16: 0.02229679759 | N16: 0.6140581189
B17: ='Net present value'!B23 -> 2027 | C17: ='Net present value'!D23 -> 10 | D17: ='Net present value'!O23 -> 609.7506769 | E17: ='Net present value'!E44 -> 938.1765344 | F17: ='Net present value'!AK23 -> 622.889333 | G17: ='Net present value'!AS23 -> 1005.130079 | I17: 328.4258575 | J17: 13.13865609 | K17: 395.3794017 | L17: 0.5386231947 | M17: 0.02154758754 | N17: 0.6484279832
B19: Key Inputs Varied Across Scenarios**:
B20: Annual cow costs, $/year | D20: ='Net present value'!G7 -> 800 | E20: ='Net present value'!E33 -> 720 | F20: =D20 -> 800 | G20: =D20 -> 800
B21: Discount rate, interest rate | D21: ='Net present value'!$N9 -> 0.075 | E21: ='Net present value'!$N9 -> 0.075 | F21: 0.0675 | G21: =D21 -> 0.075
B22: Calf Price, $/cwt | C22: =B8 -> 2018 | D22: ='Net present value'!F14 -> 170.5986 | E22: =D22 -> 170.5986 | F22: =E22 -> 170.5986 | G22: ='Net present value'!AM14 -> 187.8016
C23: 2019 | D23: ='Net present value'!F15 -> 166.9566 | E23: =D23 -> 166.9566 | F23: 166.9566 | G23: ='Net present value'!AM15 -> 183.8796
C24: 2020 | D24: ='Net present value'!F16 -> 153.0346 | E24: 153.0346 | F24: 153.0346 | G24: ='Net present value'!AM16 -> 168.6496
C25: 2021 | D25: ='Net present value'!F17 -> 149.2736 | E25: 149.2736 | F25: 149.2736 | G25: ='Net present value'!AM17 -> 164.5546
C26: 2022 | D26: ='Net present value'!F18 -> 141.3726 | E26: 141.3726 | F26: 141.3726 | G26: ='Net present value'!AM18 -> 155.9056
C27: 2023 | D27: ='Net present value'!F19 -> 141.1426 | E27: 141.1426 | F27: 141.1426 | G27: ='Net present value'!AM19 -> 155.6526
C28: 2024 | D28: ='Net present value'!F20 -> 138.1236 | E28: 138.1236 | F28: 138.1236 | G28: ='Net present value'!AM20 -> 152.2896
C29: 2025 | D29: ='Net present value'!F21 -> 137.192 | E29: 137.192 | F29: 137.192 | G29: ='Net present value'!AM21 -> 151.248
C30: 2026 | D30: ='Net present value'!F22 -> 135.6946 | E30: 135.6946 | F30: 135.6946 | G30: ='Net present value'!AM22 -> 149.5756
C31: 2027 | D31: ='Net present value'!F23 -> 135.9472 | E31: 135.9472 | F31: 135.9472 | G31: ='Net present value'!AM23 -> 149.8282
B32: * NPV is Net Present Value of a replacement expected to produce the number of saleable calves listed in the "Number of Calves" column before a cow is culled for age-related reasons.
B35: ** Annual cow cost, discount rate, and calf price assumptions were varied with all other inputs set at their settings in the NET PRESENT VALUE tab.
